Cogmind - Beta 14 @@@ ROGUE MODE // 2024.11.01 @ 12:05:32 Player: Xellophane Result: Destroyed by Y-45 Defender with Beam Rifle Performance ------------- Evolutions (0) 0 Regions Visited (2) 400 Robots Destroyed (27) 135 Value Destroyed (487) 487 Prototype IDs (3) 60 Alien Tech Used (0) 0 Bonus (25) 25 TOTAL SCORE: 1107 Bonus ------- Follower Combat Kills 25 Cogmind --------- Core Integrity 0/250 Matter 273/300 Energy 98/100 System Corruption 0% Temperature Cool (9) Movement Treading (160) Location -10/Mines Parts ------- > --- POWER (1) -------- (None) > --- PROPULSION (2) --- Light Treads Light Treads > --- UTILITY (2) ------ Large Storage Unit Seismic Detector > --- WEAPON (2) ------- Light Assault Rifle Light Assault Rifle > --- INVENTORY (15) --- Light Ion Engine Light Ion Engine Light Treads Aluminum Leg Aluminum Leg Medium Storage Unit Targeting Computer Targeting Computer Light Armor Plating Beamcaster Light Assault Rifle Rocket Launcher Mining Laser Ripper Peak State ------------ > --- POWER ------------ Light Ion Engine > --- PROPULSION ------- Light Treads Light Treads > --- UTILITY ---------- Large Storage Unit Seismic Detector > --- WEAPON ----------- Medium Laser Light Assault Rifle > --- INVENTORY -------- Light Ion Engine Light Ion Engine Light Treads Aluminum Leg Aluminum Leg Medium Storage Unit Targeting Computer Targeting Computer Light Armor Plating Small Laser Beamcaster Light Assault Rifle Light Assault Rifle Mining Laser Ripper [Rating: 9] Favorites ----------- Power Light Ion Engine Engine Light Ion Engine Propulsion Light Treads Treads Light Treads Utility Seismic Detector Device Seismic Detector Storage Large Storage Unit Weapon Medium Laser Energy Gun Medium Laser Ballistic Gun Light Assault Rifle Build | -11 -10 -10 ------- Run | Yrd Mat Min Slots Evolved . | . . . Power . | . . . Propulsion . | . . . Utility . | . . . Weapon . | . . . Parts Attached 16 | 7 7 2 Power 3 | 1 2 . Engine 3 | 1 2 . Core . | . . . Reactor . | . . . Propulsion 5 | 2 3 . Treads 5 | 2 3 . Leg . | . . . Wheel . | . . . Hover . | . . . Flight . | . . . Utility 4 | 2 2 . Device 1 | 1 . . Storage 3 | 1 2 . Processor . | . . . Hackware . | . . . Protection . | . . . Artifact . | . . . Weapon 4 | 2 . 2 Energy Gun 2 | 2 . . Energy Cannon . | . . . Ballistic Gun 2 | . . 2 Ballistic Cannon . | . . . Launcher . | . . . Special Weapon . | . . . Impact Weapon . | . . . Slashing Weapon . | . . . Piercing Weapon . | . . . Special Melee Weapon . | . . . Unidentified Prototypes . | . . . Parts Lost 6 | . 4 2 Power 3 | . 2 1 Propulsion 2 | . 2 . Utility . | . . . Weapon 1 | . . 1 Highest Loss Streak 2 | . 2 2 To Critical Strikes . | . . . Average Slot Usage (%) 99 | . 99 99 Engine 13 | . 14 13 Treads 27 | . 27 28 Device 14 | . 14 14 Storage 14 | . 14 14 Energy Gun 22 | . 28 14 Ballistic Gun 5 | . . 13 Peak Build Rating 9 | 7 8 9 Average Rating 7 | 6 7 8 On Entrance 5 | . 7 8 Naked Turns . | . . . Heaviest Build 28 | 13 28 28 Greatest Support 40 | 3 40 40 Greatest Overweight (x) 4 | 4 4 . Average Overweight (x) . | 3 . . Largest Inventory Capacity 15 | 8 15 15 Average Capacity 11 | 7 10 15 Most Carried 15 | 7 14 15 Average Carried 9 | 5 7 14 Final Capacity 15 | 8 15 15 Final Carried 14 | 7 14 14 Class Distribution -------------------- 51% | Scavenger-Mutant 48% | Mutant Dominant Class ---------------- Mutant | -10/Materials Scavenger-Mutant | -10/Mines Resources | -11 -10 -10 ----------- Run | Yrd Mat Min Matter Collected 341 | 270 60 11 Remotely . | . . . Salvage Created 834 | 282 460 92 Parts 52 | 27 20 5 Haulers Intercepted 1 | . 1 . Recyclers Shooed 2 | . 2 . Parts Field Recycled . | . . . Retrieved Matter . | . . . Parts Self-Destructed . | . . . Prevented . | . . . Kills | -11 -10 -10 ------- Run | Yrd Mat Min Combat Hostiles Destroyed 13 | . 9 4 Guns 12 | . 8 4 Classes Destroyed 7 | 3 3 1 Worker 2 | 2 . . Builder 1 | . 1 . Tunneler 9 | 9 . . Hauler 1 | . 1 . Recycler 1 | 1 . . Swarmer 3 | . . 3 Grunt 10 | . 9 1 Best Kill Streak 3 | 3 2 3 Combat Bots Only 3 | . 2 3 Max Kills in Single Turn 1 | 1 1 1 Gunslinging . | . . . Exploded . | . . . Melee . | . . . Uniques/NPCs Destroyed . | . . . Combat | -11 -10 -10 -------- Run | Yrd Mat Min Hostile Shots Fired 122 | . 77 45 Missed 27 | . 13 14 Damage Taken 1157 | . 753 404 Core 258 | . 115 143 Absorbed by Shields . | . . . Regen/Repaired (Parts) 117 | . 117 . Core Remaining (%) 100 | 100 . . Volleys Fired 108 | 33 54 21 Largest 2 | 2 2 2 Hottest 100 | 100 100 100 Shots Fired 202 | 61 103 38 Gun 202 | 61 103 38 Cannon . | . . . Launcher . | . . . Special . | . . . Kinetic 19 | . . 19 Thermal 183 | 61 103 19 Explosive . | . . . Electromagnetic . | . . . Robot Hit Streak 14 | 4 6 14 Robot Miss Streak 10 | 7 10 3 Penetration Max . | . . . Secondary Targets 1 | . 1 . Max Gunslinging Chain 1 | . 1 . Shots Hit Robots 111 | 30 52 29 Core Hits 44 | 13 24 7 Critical Kills . | . . . Critical Parts Destroyed . | . . . Critical Strikes 11 | 2 6 3 Burn 11 | 2 6 3 Melee Attacks . | . . . Impact . | . . . Slashing . | . . . Piercing . | . . . Sneak Attacks . | . . . Combat Hostiles . | . . . Follow-up Attacks . | . . . Damage Inflicted 1352 | 377 688 287 Guns 1352 | 377 688 287 Cannons . | . . . Explosions . | . . . Melee . | . . . Ramming . | . . . Kinetic 124 | . . 124 Thermal 1228 | 377 688 163 Explosive . | . . . Electromagnetic . | . . . Impact . | . . . Slashing . | . . . Piercing . | . . . Highest Corruption . | . . . Average Corruption . | . . . Corruption Purged . | . . . Corruption Blocked . | . . . Overload Shots . | . . . Overflow Damage . | . . . Projectiles . | . . . Explosions . | . . . Melee . | . . . Knockbacks . | . . . Impact . | . . . Kinetic . | . . . Secondary . | . . . Self-Inflicted Damage . | . . . Shots . | . . . Rammed . | . . . Targets Rammed . | . . . Kicked . | . . . Crushed . | . . . Highest Temperature 382 | 351 382 205 Average Temperature 124 | 120 137 72 Received Heat Transfer 591 | . 423 168 Effects 8 | 3 5 . Energy Bleed 2 | 1 1 . Interference 6 | 2 4 . Siege Activations . | . . . Robots Corrupted . | . . . Combat Hostiles . | . . . Parts Fried . | . . . Impact Corruptions . | . . . Robots Melted 1 | . 1 . Combat Hostiles 1 | . 1 . Parts Melted 11 | 3 5 3 Heat Transferred 4440 | 1258 2479 703 Parts Sabotaged . | . . . Parts Stolen . | . . . Parts Stripped . | . . . Power Chain Reactions . | . . . Alert | -11 -10 -10 ------- Run | Yrd Mat Min Peak Influence 233 | 60 233 181 Initial 39 | . 39 31 Average 94 | 30 116 101 Maximum Alert Level 1 | . 1 . Low Security (%) 95 | 100 90 100 Level 1 4 | . 9 . Level 2 . | . . . Level 3 . | . . . Level 4 . | . . . Level 5 . | . . . High Security . | . . . Max Security . | . . . Squads Dispatched 4 | . 4 . Investigation 2 | . 2 . Extermination . | . . . Reinforcement 2 | . 2 . Assault . | . . . Garrison . | . . . Intercept . | . . . Searches Triggered . | . . . Construction Impeded . | . . . Haulers Reinforced . | . . . Active Scanning Responses . | . . . Cargo Convoy Interrupts . | . . . Stealth | -11 -10 -10 --------- Run | Yrd Mat Min Distress Signals 2 | . 2 . Communications Jammed . | . . . Distress Signals . | . . . Times Spotted 28 | . 19 9 Peak Tracking Total 5 | . 5 2 Tactical Retreats 4 | . 2 2 Traps | -11 -10 -10 ------- Run | Yrd Mat Min Traps Triggered 1 | . 1 . Indirectly . | . . . Trap Hack Attempts . | . . . Triggered . | . . . Disarmed . | . . . Reprogrammed . | . . . Reused . | . . . Traps Extracted . | . . . Installed . | . . . Triggered . | . . . Machines | -11 -10 -10 ---------- Run | Yrd Mat Min Machines Disabled . | . . . Max in Single Turn . | . . . Machines Repaired . | . . . Machines Dismantled . | . . . Machines Sabotaged . | . . . Overloaded Fab Kills . | . . . Hacking | -11 -10 -10 --------- Run | Yrd Mat Min Machines Accessed 4 | . 4 . Terminals 3 | . 3 . Fabricators . | . . . Repair Stations 1 | . 1 . Recycling Units . | . . . Scanalyzers . | . . . Garrison Access . | . . . Total Hacks 11 | . 11 . Successful 7 | . 7 . Failed 4 | . 4 . Catastrophic 1 | . 1 . Database Lockouts . | . . . Manual 4 | . 4 . Terminals 8 | . 8 . Fabricators . | . . . Repair Stations 3 | . 3 . Recycling Units . | . . . Scanalyzers . | . . . Garrison Access . | . . . Terminal Hacks 4 | . 4 . Prototype ID Bank 2 | . 2 . Branch Access Points 1 | . 1 . Recall Reinforcements 1 | . 1 . Fabricator Hacks . | . . . Repair Station Hacks 3 | . 3 . Scan Component 2 | . 2 . Repair 1 | . 1 . Recycling Unit Hacks . | . . . Scanalyzer . | . . . Garrison Access Hacks . | . . . Unauthorized Hacks . | . . . Terminals . | . . . Fabricators . | . . . Repair Stations . | . . . Recycling Units . | . . . Scanalyzers . | . . . Garrison Access . | . . . Data Cores Recovered . | . . . Used . | . . . Hacking Detections 4 | . 4 . Full Trace Events 2 | . 2 . Feedback Events . | . . . Feedback Blocked . | . . . Robot Schematics Acquired . | . . . Robots Built . | . . . Authchips . | . . . Time . | . . . Total Robot Build Rating . | . . . Part Schematics Acquired . | . . . Parts Built . | . . . Authchips . | . . . Time . | . . . Total Part Build Rating . | . . . Parts Repaired 1 | . 1 . Time 26 | . 26 . Parts Recycled . | . . . Recycled Matter . | . . . Retrieved Matter . | . . . Retrieved Components . | . . . Parts Scanalyzed . | . . . Part Schematics Acquired . | . . . Parts Damaged . | . . . Bothacking | -11 -10 -10 ------------ Run | Yrd Mat Min Used RIF Installer . | . . . Robots Hacked . | . . . Non-combat . | . . . Combat . | . . . Robot Hacks Applied . | . . . Relay Couplers Released . | . . . Fabnet Peak Effective % . | . . . Robots Rewired . | . . . Allies Hacked . | . . . Hacks Repelled . | . . . Allies | -11 -10 -10 -------- Run | Yrd Mat Min Total Allies 2 | . . 2 Largest Group 2 | . . 2 Highest-Rated Group 38 | . . 38 Highest-Rated Ally 31 | . . 31 Total Orders . | . . . Ally Attacks 10 | . . 10 Total Damage 63 | . . 63 Kills 1 | . . 1 Allies Corrupted . | . . . Allies Melted . | . . . Intel | -11 -10 -10 ------- Run | Yrd Mat Min Robot Analysis Total . | . . . Derelict Logs Recovered 2 | . . 2 Drone Launches . | . . . Drone Recoveries . | . . . Exploration | -11 -10 -10 ------------- Run | Yrd Mat Min Turns Passed 1875 | 374 876 625 Spaces Moved 797 | 120 365 312 Core 194 | 120 74 . Treads 603 | . 291 312 Legs . | . . . Wheels . | . . . Hover . | . . . Flight . | . . . Fastest Speed 50 | 50 160 160 Average Speed 176 | 214 178 160 Slowest Speed 250 | 250 250 160 Overloaded Moves . | . . . Propulsion Burnouts . | . . . Robots Hopped . | . . . Cave-ins Triggered . | . . . Exploration Rate (%) 54 | 11 72 79 Regions Visited 2 Branch Regions 1 Pre-discovered Areas . | . . . Known Exits Taken 1 | . 1 . Unknown Exits Taken 1 | 1 . . Scrap Searched 1 | . . 1 Spaces Dug . | . . . Terrain Destroyed . | . . . Melee . | . . . Projectile . | . . . AOE . | . . . Terrain Rammed . | . . . Walls Destroyed . | . . . Machines Disabled . | . . . Actions | -11 -10 -10 --------- Run | Yrd Mat Min Total 1068 | 174 488 406 Wait 119 | 6 48 65 Move 795 | 119 364 312 Hop . | . . . Pick Up 23 | 8 12 3 Fast Attach 8 | 7 1 . Attach 5 | . 4 1 Detach . | . . . Swap 3 | . 2 1 Drop 6 | 1 3 2 Fire 108 | 33 54 21 Melee . | . . . Ram . | . . . Kick . | . . . Crush . | . . . Escape Stasis . | . . . Rewire 1 | . . 1 Trap . | . . . Miscellaneous . | . . . Route ------- -11/Scrapyard -10/Materials (discovered 4 exits: [*Mat x2] / *Min x2) -10/Mines (discovered 3 exits: [*Mat x2] / [*Sub]) History --------- Turn | Location | Event 14 | -11/Scrapyard | Discovered new exit (range 16) 375 | -11/Scrapyard | Entered Materials 376 | -10/Materials | Build established: Mutant 516 | -10/Materials | Discovered new exit (range 16) 825 | -10/Materials | Identified exit to Mines 906 | -10/Materials | Discovered new exit (range 16) 975 | -10/Materials | Derelicts attacked the area 1063 | -10/Materials | Repaired Lgt. Treads 1109 | -10/Materials | Discovered new exit (range 14) 1251 | -10/Materials | Entered Mines 1265 | -10/Mines | Learned Materials terminal intel 1313 | -10/Mines | Core integrity fell below 50% 1370 | -10/Mines | Build established: Scavenger-Mutant 1589 | -10/Mines | Learned Materials emergency access door positions 1666 | -10/Mines | A weapon hastily lodged in a ceiling crevice suddenly fell to the ground 1695 | -10/Mines | Discovered new exit (range 8) 1737 | -10/Mines | Received a Rocket Launcher from a helpful Derelict 1811 | -10/Mines | Discovered new exit (range 3) 1816 | -10/Mines | Discovered new exit (range 8) 1865 | -10/Mines | Core integrity fell below 20% 1876 | -10/Mines | Destroyed by Y-45 Defender with Beam Rifle Last Messages --------------- 01732_ 8C-A5E(g): "Some of my friends down here think you need a mining laser when you travel the depths." 01733_ 8C-A5E(g): "Pshh... whatever." 01734_ 8C-A5E(g): "Everyone knows a good old rocket launcher goes a long way." 01735_ 8C-A5E(g): "Need to get rid of a swarm? Done. Need a big hole in the wall? Done." 01736_ 8C-A5E(g): "Need a small hole in the wall? Leave that to the mining laser wimps, I say!" 01737_ 8C-A5E(g): "Would you like a rocket launcher? I know I would if I were you, so I'm going to lend you mine." 01737_ 8C-A5E(g) slips back into the shadows. 01739_ Dropped Sml. Laser. 01739_ Acquired Rocket Launcher. 01811_ EXIT=FOUND 01818_ U-05 Engineer lays Concrete. 01840_ Lgt. Ion Engine destroyed. 01846_ Med. Laser destroyed. 01852_ Y-45 Defender destroyed. 01858_ Critical hit (Burn: +37). Map ----- +----------------------------------------------------+ | ???????????????????????????????????# | | ???????????????????????????????????### | | ?????????????????????????????????????? | | ?????????????????????????????????????? | | ?????????????????????????????????????? | | ?????????????????????????????????????? | | ?????????????????????????????????????? | | ?????????????????????????????????????? | | ?????????????????????????????????????? | | ?????????????????????????????????????? | | ?????????????????????????????????????? | | ?????????????????????????????????????? | | ???????????????????????????????##????? | | ?????????????????????????????## ???? | | ??????????????????????###??? ???? | | ?????????????????????? #??? ???? | | ??????######???#??????# #???? ???? | | ?????##"[!"#??? ??????# #???? ????? | | ?????#""!!""??# #?????# ###?? ????? | | ?????# ???# #????## ##? ????? | | ??????# [ ???# #???## #? ????? | | ?????###Y/###?# #??## #?# #????? | | ????## =% #?# #?## #?# #????? | | ????# ### ### #?# #????? | | ????# ## ## #??# #????? | | ????# @# # < #???# #????? | | ????## ##### #???? | | ?????#### ### #### | | ????????# # #?## ###### | | ????????# # ##??## ####????# | | ??????? ###???# #??????## ###### | | ??????# #?????# #???????# #????? | | ??????# ###?????# #######?# #????? | | ??????# ????????< ### """ #?# #????? | | ?????? ???????#####?# """ #?# ###### | | ?????""" ?????????????# """ #?# | | ???? """ ?????????????# ### ###### | | ???????" ?????????????# #????? | | ??????? ?????????????# #####????? | | ????????#?????????????#######????????? | | ?????????????????????????????????????? | | ?????????????????????????????????????? | | | | | | | | | | | | | | | | | +----------------------------------------------------+ Best States ------------- Heat Dissipation 25 Energy Generation 10 Energy Capacity 125 Matter Stores 300 Matter Capacity 300 Sight Range 16 Terrain Scan Density 10 Evasion (%) 40 Recoil Reduction 2 Item Schematics ----------------- None Robot Schematics ------------------ None Fabricated ------------ Nothing Alien Tech Used ----------------- None Achievements -------------- None Challenges ------------ None Game ------ Seed PrecisionSensorBay Manual? 0 Play Time 00:17:23 Cumulative 11.1 hours Start 2024.11.01 @ 11:48:29 End 2024.11.01 @ 12:05:32 Sessions 1 Manual Loads 0 Difficulty Rogue Special Mode None Game No. 18 Rogue 18 Adventurer 0 Explorer 0 Win Type - Total 0 Types 0/0/0/0/0/0/0/0/0 Lore% 4 Gallery% 8 Achievement% 13 Wizard Run 0 Options --------- Layout 0 ASCII 0 Keyboard 1 Movement Numpad Keybinds 0 Fullscreen 2 Font 18/SmallcapsGlow Map View 76x50 Zoom Use 0% Tactical HUD 1 Map Filters NONE Filters NONE Steam 1 RUN: ace0285c-f924-4ec3-b939-f6ce9c64094b